fUST/lending_fUST_20240123
["ID","MTS","AMOUNT","RATE_DAILY","PERIOD"]
[312577348,1706021280145,-504.42578945,0.00041643,31]
[312577349,1706021280170,-500.0,0.00041643,31]
[312577350,1706021280195,-500.0,0.00041643,31]
[312577351,1706021280219,-500.0,0.00041643,31]
[312577352,1706021280243,-500.0,0.00041643,31]
[312577353,1706021280268,-500.0,0.00041643,31]
[312577354,1706021280294,-500.0,0.00041643,31]
[312577355,1706021280322,-500.0,0.00041643,31]
[312577356,1706021280348,-500.0,0.00041643,31]
[312577357,1706021280374,-500.0,0.00041643,31]
[312577358,1706021280400,-509.19883967,0.00041643,31]
[312577359,1706021280426,-500.0,0.00041643,31]
[312577360,1706021280451,-150.0,0.00041643,31]
[312577361,1706021280477,-476.44405608,0.00041643,31]
[312577362,1706021280502,-500.0,0.00041643,31]
[312577363,1706021280529,-500.0,0.00041643,31]
[312577364,1706021280555,-500.0,0.00041643,31]
[312577365,1706021280581,-500.0,0.00041643,31]
[312577366,1706021280607,-705.29,0.00041643,31]
[312577367,1706021280632,-500.0,0.00041643,31]
[312577368,1706021280657,-500.0,0.00041643,31]
[312577369,1706021280682,-500.0,0.00041643,31]
[312577370,1706021280708,-500.0,0.00041643,31]
[312577371,1706021280832,-552.59,0.00041643,31]
[312577372,1706021280858,-500.0,0.00041643,31]
[312577373,1706021280883,-500.0,0.00041643,31]
[312577374,1706021280908,-525.51780334,0.00041643,31]
[312577375,1706021280933,-678.43,0.00041643,31]
[312577376,1706021280959,-500.0,0.00041643,31]
[312577377,1706021280986,-361.31618579,0.00041643,31]
[312577378,1706021281010,-571.55169441,0.00041643,31]
[312577379,1706021281036,-500.0,0.00041643,31]
[312577380,1706021281062,-500.0,0.00041643,31]
[312577381,1706021281087,-901.26,0.00041643,31]
[312577382,1706021281112,-500.0,0.00041643,31]
[312577383,1706021281137,-213.77792659,0.00041643,31]
[312577384,1706021281161,-500.0,0.00041643,31]
[312577385,1706021281186,-500.0,0.00041643,31]
[312577386,1706021281211,-500.0,0.00041643,31]
[312577387,1706021281235,-500.0,0.00041643,31]
[312577388,1706021281260,-500.0,0.00041643,31]
[312577389,1706021281285,-500.0,0.00041643,31]
[312577390,1706021281311,-500.0,0.00041643,31]
[312577391,1706021281336,-500.0,0.00041643,31]
[312577392,1706021281363,-500.0,0.00041643,31]
[312577393,1706021281388,-500.0,0.00041643,31]
[312577394,1706021281414,-500.0,0.00041643,31]
[312577395,1706021281440,-500.0,0.00041643,31]
[312577396,1706021281467,-500.0,0.00041643,31]
[312577397,1706021281493,-638.65769995,0.00041643,31]
[312577398,1706021281519,-510.40685015,0.00041643,31]
[312577399,1706021281544,-500.0,0.00041643,31]
[312577400,1706021281569,-200.0,0.00041643,31]
[312577401,1706021281594,-508.36499999,0.00041643,31]
[312577402,1706021281621,-500.0,0.00041643,31]
[312577403,1706021281647,-502.78782869,0.00041643,31]
[312577404,1706021281672,-500.0,0.00041643,31]
[312577405,1706021281698,-500.0,0.00041643,31]
[312577406,1706021281722,-500.0,0.00041643,31]
[312577407,1706021281748,-534.62835977,0.00041643,31]
[312577408,1706021281772,-500.0,0.00041643,31]
[312577409,1706021281797,-500.0,0.00041643,31]
[312577410,1706021281822,-500.0,0.00041643,31]
[312577411,1706021281847,-663.38,0.00041643,31]
[312577412,1706021281873,-661.66,0.00041643,31]
[312577413,1706021281898,-506.7239864,0.00041643,31]
[312577414,1706021281923,-993.12,0.00041643,31]
[312577415,1706021281947,-500.0,0.00041643,31]
[312577416,1706021281973,-500.0,0.00041643,31]
[312577417,1706021282002,-500.0,0.00041643,31]
[312577418,1706021282026,-500.0,0.00041643,31]
[312577419,1706021282051,-507.26,0.00041643,31]
[312577420,1706021282078,-1220.46,0.00041643,31]
[312577421,1706021282103,-513.33304006,0.00041643,31]
[312577422,1706021282131,-500.0,0.00041643,31]
[312577423,1706021282156,-225.23199812,0.00041643,31]
[312577424,1706021282182,-855.69,0.00041643,31]
[312577425,1706021282208,-500.0,0.00041643,20]
[312577426,1706021282233,-502.71475331,0.00041643,31]
[312577427,1706021282259,-889.89,0.00041643,31]
[312577428,1706021282285,-1145.19,0.00041643,31]
[312577429,1706021282312,-500.0,0.00041643,31]
[312577430,1706021282338,-500.0,0.00041643,31]
[312577431,1706021282364,-503.33976141,0.00041643,31]
[312577432,1706021282390,-500.0,0.00041643,31]
[312577433,1706021282416,-690.77,0.00041643,31]
[312577434,1706021282532,-500.0,0.00041643,31]
[312577435,1706021282558,-500.0,0.00041643,31]
[312577436,1706021282583,-503.30908677,0.00041643,31]
[312577437,1706021282609,-500.0,0.00041643,31]
[312577438,1706021282635,-504.31655243,0.00041643,31]
[312577439,1706021282663,-1050.5,0.00041643,31]
[312577440,1706021282689,-500.0,0.00041643,31]
[312577441,1706021282716,-500.0,0.00041643,31]
[312577442,1706021282743,-500.0,0.00041643,31]
[312577443,1706021282773,-1087.76,0.00041643,31]
[312577444,1706021282812,-500.0,0.00041643,31]
[312577445,1706021282838,-500.0,0.00041643,31]
[312577446,1706021282865,-719.12,0.00041643,31]
[312577447,1706021282892,-500.0,0.00041643,31]
[312577448,1706021282918,-500.0,0.00041643,31]
[312577449,1706021282945,-822.66,0.00041643,31]
[312577450,1706021282974,-500.0,0.00041643,31]
[312577451,1706021283006,-653.39,0.00041643,31]
[312577452,1706021283031,-950.16,0.00041643,7]
[312577453,1706021283058,-495.26917677,0.00041643,31]
[312577454,1706021283084,-500.0,0.00041643,31]
[312577455,1706021283112,-500.0,0.00041643,31]
[312577456,1706021283143,-4993.58,0.00041643,31]
[312577457,1706021283175,-500.0,0.00041643,31]
[312577458,1706021283201,-500.0,0.00041643,31]
[312577459,1706021283228,-727.99,0.00041643,31]
[312577460,1706021283254,-1018.05,0.00041643,31]
[312577461,1706021283282,-341.19234907,0.00041643,31]
[312577462,1706021283309,-500.0,0.00041643,31]
[312577463,1706021283336,-514.67557398,0.00041643,31]
[312577464,1706021283362,-509.77094178,0.00041643,31]
[312577465,1706021283389,-500.0,0.00041643,31]
[312577466,1706021283417,-500.0,0.00041643,31]
[312577467,1706021283443,-698.34,0.00041643,31]
[312577468,1706021283471,-500.0,0.00041643,31]
[312577469,1706021283498,-500.0,0.00041643,31]
[312577470,1706021283527,-500.0,0.00041643,31]
[312577471,1706021283556,-601.83,0.00041643,31]
[312577472,1706021283587,-26934.74,0.00041643,14]
[312577473,1706021283618,-351.62197479,0.00041643,31]
[312577474,1706021283647,-500.0,0.00041643,31]
[312577475,1706021283678,-536.74762335,0.00041643,31]
[312577476,1706021283707,-500.0,0.00041643,31]
[312577477,1706021283738,-500.0,0.00041643,31]
[312577478,1706021283773,-500.0,0.00041643,31]
[312577479,1706021283804,-500.0,0.00041643,31]
[312577480,1706021283834,-358.82352239,0.00041643,31]
[312577481,1706021283875,-500.0,0.00041643,31]
[312577482,1706021283908,-1273.46,0.00041643,31]
[312577483,1706021283939,-506.85,0.00041643,31]
[312577484,1706021283974,-500.0,0.00041643,31]
[312577485,1706021284010,-500.0,0.00041643,31]
[312577486,1706021284040,-500.0,0.00041643,31]
[312577487,1706021284070,-500.0,0.00041643,31]
[312577488,1706021284099,-500.0,0.00041643,31]
[312577489,1706021284134,-500.0,0.00041643,31]
[312577490,1706021284164,-500.0,0.00041643,31]
[312577491,1706021284194,-543.77400154,0.00041643,31]
[312577492,1706021284221,-500.0,0.00041643,31]
[312577493,1706021284247,-504.05203383,0.00041643,31]
[312577494,1706021284367,-500.0,0.00041643,31]
[312577495,1706021284394,-760.56,0.00041643,31]
[312577496,1706021284421,-500.0,0.00041643,31]
[312577497,1706021284448,-514.25206482,0.00041643,31]
[312577498,1706021284475,-518.59,0.00041643,31]
[312577499,1706021284502,-500.0,0.00041643,31]
[312577500,1706021284528,-500.0,0.00041643,31]
[312577501,1706021284554,-673.36,0.00041643,31]
[312577502,1706021284580,-500.0,0.00041643,31]
[312577503,1706021284605,-560.07407215,0.00041643,31]
[312577504,1706021284633,-500.0,0.00041643,31]
[312577505,1706021284658,-205.7602121,0.00041643,31]
[312577506,1706021284684,-500.0,0.00041643,31]
[312577507,1706021284710,-500.0,0.00041643,31]
[312577508,1706021284734,-500.0,0.00041643,31]
[312577509,1706021284759,-500.0,0.00041643,31]
[312577510,1706021284784,-500.0,0.00041643,31]
[312577511,1706021284809,-500.0,0.00041643,31]
[312577512,1706021284834,-500.0,0.00041643,31]
[312577513,1706021284862,-507.66078052,0.00041643,31]
[312577514,1706021284887,-500.0,0.00041643,31]
[312577515,1706021284912,-301.31584025,0.00041643,31]
[312577516,1706021284937,-259.76762901,0.00041643,31]
[312577517,1706021284964,-500.0,0.00041643,31]
[312577518,1706021284990,-500.0,0.00041643,31]
[312577519,1706021285014,-500.0,0.00041643,31]
[312577520,1706021285041,-500.0,0.00041643,31]
[312577521,1706021285069,-500.0,0.00041643,31]
[312577522,1706021285096,-500.0,0.00041643,31]
[312577523,1706021285125,-1001.26,0.00041643,31]
[312577524,1706021285151,-528.09410937,0.00041643,31]
[312577525,1706021285180,-638.07,0.00041643,31]
[312577526,1706021285207,-500.0,0.00041643,31]
[312577527,1706021285235,-500.0,0.00041643,31]
[312577528,1706021285262,-500.0,0.00041643,31]
[312577529,1706021285289,-1101.76,0.00041643,31]
[312577530,1706021285315,-500.0,0.00041643,31]
[312577531,1706021285341,-973.74,0.00041643,31]
[312577532,1706021285366,-602.58420931,0.00041643,31]
[312577533,1706021285393,-500.0,0.00041643,31]
[312577534,1706021285419,-500.0,0.00041643,31]
[312577535,1706021285446,-424.10135274,0.00041643,31]
[312577536,1706021285474,-500.0,0.00041643,31]
[312577537,1706021285502,-500.0,0.00041643,31]
[312577538,1706021285530,-500.0,0.00041643,31]
[312577539,1706021285558,-500.0,0.00041643,31]
[312577540,1706021285585,-516.41,0.00041643,31]
[312577541,1706021285615,-1055.33,0.00041643,31]
[312577542,1706021285640,-500.0,0.00041643,31]
[312577543,1706021285665,-500.0,0.00041643,31]
[312577544,1706021285692,-742.32,0.00041643,31]
[312577545,1706021285719,-517.30729681,0.00041643,31]
[312577546,1706021285746,-500.0,0.00041643,31]
[312577547,1706021285772,-606.2,0.00041643,31]
[312577548,1706021285798,-500.0,0.00041643,31]
[312577549,1706021285823,-500.0,0.00041643,31]
[312577550,1706021285851,-500.0,0.00041643,31]
[312577551,1706021285879,-1128.21,0.00041643,31]
[312577552,1706021285905,-963.14,0.00041643,31]
[312577553,1706021286022,-500.0,0.00041643,31]
[312577554,1706021286050,-500.0,0.00041643,31]
[312577555,1706021286075,-676.58,0.00041643,31]
[312577556,1706021286102,-150.0,0.000418,30]
[312577557,1706021286129,-154.52354441,0.00041834,30]
[312577558,1706021286155,-158.3224257,0.00041863,30]
[312577559,1706021286179,-500.0,0.00041917,7]
[312577560,1706021286204,-500.0,0.00041917,31]
[312577561,1706021286230,-500.0,0.00041917,31]
[312577562,1706021286255,-500.0,0.00041917,31]
[312577563,1706021286281,-205.58270534,0.00041917,31]
[312577564,1706021286306,-596.43,0.00041917,31]
[312577565,1706021286331,-504.10499287,0.00041917,31]
[312577566,1706021286356,-501.48304703,0.00041917,31]
[312577567,1706021286382,-1113.45,0.00041917,31]
[312577568,1706021286408,-500.0,0.00041917,31]
[312577569,1706021286433,-500.0,0.00041917,31]
[312577570,1706021286458,-500.0,0.00041917,31]
[312577571,1706021286485,-500.0,0.00041917,31]
[312577572,1706021286512,-500.0,0.00041917,31]
[312577573,1706021286537,-835.16,0.00041917,31]
[312577574,1706021286562,-502.11576307,0.00041917,31]
[312577575,1706021286587,-502.23335856,0.00041917,31]
[312577576,1706021286612,-500.0,0.00041917,31]
[312577577,1706021286637,-500.0,0.00041917,31]
[312577578,1706021286662,-500.0,0.00041917,31]
[312577579,1706021286686,-500.0,0.00041917,31]
[312577580,1706021286712,-503.83046356,0.00041917,31]
[312577581,1706021286736,-500.0,0.00041917,31]
[312577582,1706021286761,-500.0,0.00041917,31]
[312577583,1706021286786,-507.23213335,0.00041917,31]
[312577584,1706021286810,-500.0,0.00041917,31]
[312577585,1706021286835,-500.0,0.00041917,31]
[312577586,1706021286860,-500.0,0.00041917,31]
[312577587,1706021286885,-500.0,0.00041917,31]
[312577588,1706021286911,-500.0,0.00041917,7]
[312577589,1706021286937,-500.0,0.00041917,31]
[312577590,1706021286968,-500.0,0.00041917,31]
[312577591,1706021287003,-500.0,0.00041917,31]
[312577592,1706021287031,-500.0,0.00041917,31]
[312577593,1706021287064,-500.0,0.00041917,31]
[312577594,1706021287098,-500.0,0.00041917,31]
[312577595,1706021287123,-500.0,0.00041917,31]
[312577596,1706021287148,-500.0,0.00041917,31]
[312577597,1706021287172,-583.15360398,0.00041917,31]
[312577598,1706021287198,-500.0,0.00041917,31]
[312577599,1706021287223,-505.95,0.00041917,31]
[312577600,1706021287248,-500.0,0.00041917,31]
[312577601,1706021287273,-500.0,0.00041917,31]
[312577602,1706021287298,-500.0,0.00041917,31]
[312577603,1706021287323,-500.0,0.00041917,31]
[312577604,1706021287348,-500.0,0.00041917,31]
[312577605,1706021287374,-165.33223906,0.00041917,31]
[312577606,1706021287400,-500.0,0.00041917,31]
[312577607,1706021287426,-500.0,0.00041917,31]
[312577608,1706021287451,-500.0,0.00041917,31]
[312577609,1706021287574,-500.0,0.00041917,31]
[312577610,1706021287602,-500.0,0.00041917,7]
[312577611,1706021287629,-500.0,0.00041917,31]
[312577612,1706021287655,-500.0,0.00041917,31]
[312577613,1706021287679,-393.14492439,0.00041917,31]
[312577614,1706021287704,-500.0,0.00041917,31]
[312577615,1706021287730,-500.0,0.00041917,31]
[312577616,1706021287755,-500.0,0.00041917,31]
[312577617,1706021287780,-508.92308294,0.00041917,31]
[312577618,1706021287807,-500.0,0.00041917,31]
[312577619,1706021287831,-500.0,0.00041917,31]
[312577620,1706021287857,-500.0,0.00041917,31]
[312577621,1706021287884,-500.0,0.00041917,31]
[312577622,1706021287910,-500.0,0.00041917,31]
[312577623,1706021287935,-500.0,0.00041917,31]
[312577624,1706021287961,-500.0,0.00041917,31]
[312577625,1706021287986,-500.0,0.00041917,31]
[312577626,1706021288015,-500.0,0.00041917,31]
[312577627,1706021288041,-500.0,0.00041917,31]
[312577628,1706021288069,-500.0,0.00041917,31]
[312577629,1706021288096,-500.0,0.00041917,31]
[312577630,1706021288122,-379.82382502,0.00041917,31]
[312577631,1706021288148,-500.0,0.00041917,31]
[312577632,1706021288173,-1036.26,0.00041917,31]
[312577633,1706021288197,-500.0,0.00041917,31]
[312577634,1706021288223,-474.54853374,0.00041917,31]
[312577635,1706021288250,-532.51,0.00041917,31]
[312577636,1706021288275,-500.0,0.00041917,31]
[312577637,1706021288302,-504.43274046,0.00041917,31]
[312577638,1706021288328,-415.22868142,0.00041917,31]
[312577639,1706021288354,-500.0,0.00041917,31]
[312577640,1706021288382,-577.63,0.00041917,31]
[312577641,1706021288409,-500.0,0.00041917,31]
[312577642,1706021288437,-500.0,0.00041917,31]
[312577643,1706021288463,-500.0,0.00041917,31]
[312577644,1706021288490,-690.48,0.00041917,31]
[312577645,1706021288516,-500.0,0.00041917,31]
[312577646,1706021288543,-500.0,0.00041917,31]
[312577647,1706021288572,-500.0,0.00041917,31]
[312577648,1706021288598,-500.0,0.00041917,31]
[312577649,1706021288626,-500.0,0.00041917,31]
[312577650,1706021288651,-500.0,0.00041917,31]
[312577651,1706021288676,-500.0,0.00041917,31]
[312577652,1706021288701,-500.0,0.00041917,31]
[312577653,1706021288727,-500.0,0.00041917,31]
[312577654,1706021288752,-398.83624428,0.00041917,31]
[312577655,1706021288777,-500.0,0.00041917,31]
[312577656,1706021288803,-150.0,0.00041917,31]
[312577657,1706021288829,-500.0,0.00041917,31]
[312577658,1706021288856,-500.0,0.00041917,31]
[312577659,1706021288883,-500.0,0.00041917,31]
[312577660,1706021288909,-500.0,0.00041917,31]
[312577661,1706021288934,-705.29,0.00041917,31]
[312577662,1706021288959,-500.0,0.00041917,31]
[312577663,1706021288986,-500.0,0.00041917,31]
[312577664,1706021289097,-500.0,0.00041917,31]
[312577665,1706021289122,-500.0,0.00041917,31]
[312577666,1706021289148,-552.59,0.00041917,31]
[312577667,1706021289174,-500.0,0.00041917,31]
[312577668,1706021289200,-500.0,0.00041917,31]
[312577669,1706021289224,-678.43,0.00041917,31]
[312577670,1706021289250,-500.0,0.00041917,31]
[312577671,1706021289275,-500.0,0.00041917,31]
[312577672,1706021289300,-500.0,0.00041917,31]
[312577673,1706021289326,-901.26,0.00041917,31]
[312577674,1706021289351,-500.0,0.00041917,31]
[312577675,1706021289378,-500.0,0.00041917,31]
[312577676,1706021289402,-500.0,0.00041917,31]
[312577677,1706021289428,-500.0,0.00041917,31]
[312577678,1706021289453,-500.0,0.00041917,31]
[312577679,1706021289478,-500.0,0.00041917,31]
[312577680,1706021289504,-500.0,0.00041917,31]
[312577681,1706021289530,-500.0,0.00041917,31]
[312577682,1706021289555,-500.0,0.00041917,31]
[312577683,1706021289581,-500.0,0.00041917,31]
[312577684,1706021289605,-500.0,0.00041917,31]
[312577685,1706021289632,-500.0,0.00041917,31]
[312577686,1706021289657,-500.0,0.00041917,31]
[312577687,1706021289683,-500.0,0.00041917,31]
[312577688,1706021289708,-500.0,0.00041917,31]
[312577689,1706021289733,-200.0,0.00041917,31]
[312577690,1706021289758,-500.0,0.00041917,31]
[312577691,1706021289783,-500.0,0.00041917,31]
[312577692,1706021289808,-500.0,0.00041917,31]
[312577693,1706021289833,-500.0,0.00041917,31]
[312577694,1706021289859,-500.0,0.00041917,31]
[312577695,1706021289886,-500.0,0.00041917,31]
[312577696,1706021289912,-500.0,0.00041917,31]
[312577697,1706021289938,-663.38,0.00041917,31]
[312577698,1706021289965,-661.66,0.00041917,31]
[312577699,1706021289995,-993.12,0.00041917,31]
[312577700,1706021290022,-500.0,0.00041917,31]
[312577701,1706021290049,-505.7637884,0.00041917,31]
[312577702,1706021290074,-500.0,0.00041917,31]
[312577703,1706021290101,-500.0,0.00041917,31]
[312577704,1706021290127,-507.26,0.00041917,31]
[312577705,1706021290153,-1220.46,0.00041917,31]
[312577706,1706021290180,-500.0,0.00041917,31]
[312577707,1706021290205,-855.69,0.00041917,31]
[312577708,1706021290231,-500.0,0.00041917,20]
[312577709,1706021290255,-889.89,0.00041917,31]
[312577710,1706021290281,-1145.19,0.00041917,31]
[312577711,1706021290307,-500.0,0.00041917,31]
[312577712,1706021290333,-500.0,0.00041917,31]
[312577713,1706021290359,-500.0,0.00041917,31]
[312577714,1706021290385,-690.77,0.00041917,31]
[312577715,1706021290410,-500.0,0.00041917,31]
[312577716,1706021290514,-503.94267412,0.00041917,31]
[312577717,1706021290543,-500.0,0.00041917,31]
[312577718,1706021290569,-1050.5,0.00041917,31]
[312577719,1706021290595,-500.0,0.00041917,31]
[312577720,1706021290620,-500.0,0.00041917,31]
[312577721,1706021290646,-1087.76,0.00041917,31]
[312577722,1706021290670,-500.0,0.00041917,31]
[312577723,1706021290695,-500.0,0.00041917,31]
[312577724,1706021290720,-500.0,0.00041917,31]
[312577725,1706021290746,-719.12,0.00041917,31]
[312577726,1706021290771,-500.0,0.00041917,31]
[312577727,1706021290796,-500.0,0.00041917,31]
[312577728,1706021290823,-822.66,0.00041917,31]
[312577729,1706021290849,-500.0,0.00041917,31]
[312577730,1706021290876,-653.39,0.00041917,31]
[312577731,1706021290904,-950.16,0.00041917,7]
[312577732,1706021290930,-500.0,0.00041917,31]
[312577733,1706021290955,-500.0,0.00041917,31]
[312577734,1706021290986,-4993.58,0.00041917,31]
[312577735,1706021291012,-500.0,0.00041917,31]
[312577736,1706021291037,-727.99,0.00041917,31]
[312577737,1706021291062,-500.0,0.00041917,31]
[312577738,1706021291087,-1018.05,0.00041917,31]
[312577739,1706021291111,-591.08798961,0.00041917,31]
[312577740,1706021291137,-500.0,0.00041917,31]
[312577741,1706021291160,-500.0,0.00041917,31]
[312577742,1706021291190,-698.34,0.00041917,31]
[312577743,1706021291220,-500.0,0.00041917,31]
[312577744,1706021291270,-222.85393327,0.00041917,31]
[312577745,1706021291299,-646.31083433,0.00041917,31]
[312577746,1706021291326,-601.83,0.00041917,31]
[312577747,1706021291354,-26934.74,0.00041917,14]
[312577748,1706021291381,-500.0,0.00041917,31]
[312577749,1706021291407,-500.0,0.00041917,31]
[312577750,1706021291434,-500.0,0.00041917,31]
[312577751,1706021291460,-500.0,0.00041917,31]
[312577752,1706021291486,-500.0,0.00041917,31]
[312577753,1706021291511,-500.0,0.00041917,31]
[312577754,1706021291537,-1273.46,0.00041917,31]
[312577755,1706021291562,-506.85,0.00041917,31]
[312577756,1706021291587,-500.0,0.00041917,31]
[312577757,1706021291614,-500.0,0.00041917,31]
[312577758,1706021291639,-500.0,0.00041917,31]
[312577759,1706021291663,-519.03062123,0.00041917,31]
[312577760,1706021291689,-500.0,0.00041917,31]
[312577761,1706021291714,-464.20167144,0.00041917,31]
[312577762,1706021291740,-500.0,0.00041917,31]
[312577763,1706021291763,-500.0,0.00041917,31]
[312577764,1706021291789,-500.0,0.00041917,31]
[312577765,1706021291813,-760.56,0.00041917,31]
[312577766,1706021291838,-500.0,0.00041917,31]
[312577767,1706021292020,-500.0,0.00041917,31]
[312577768,1706021292052,-518.59,0.00041917,31]
[312577769,1706021292078,-500.0,0.00041917,31]
[312577770,1706021292104,-673.36,0.00041917,31]
[312577771,1706021292130,-500.0,0.00041917,31]
[312577772,1706021292154,-500.0,0.00041917,31]
[312577773,1706021292179,-500.0,0.00041917,31]
[312577774,1706021292206,-221.60056194,0.00041917,31]
[312577775,1706021292231,-500.0,0.00041917,31]
[312577776,1706021292256,-500.0,0.00041917,31]
[312577777,1706021292281,-500.0,0.00041917,31]
[312577778,1706021292307,-490.58722344,0.00041917,31]
[312577779,1706021292332,-465.00457383,0.00041917,31]
[312577780,1706021292357,-500.0,0.00041917,31]
[312577781,1706021292384,-500.0,0.00041917,31]
[312577782,1706021292409,-500.0,0.00041917,31]
[312577783,1706021292435,-542.00809686,0.00041917,31]
[312577784,1706021292462,-500.0,0.00041917,31]
[312577785,1706021292488,-359.2665874,0.00041917,31]
[312577786,1706021292514,-500.0,0.00041917,31]
[312577787,1706021292540,-1001.26,0.00041917,31]
[312577788,1706021292567,-638.07,0.00041917,31]
[312577789,1706021292592,-500.0,0.00041917,31]
[312577790,1706021292618,-500.0,0.00041917,31]
[312577791,1706021292643,-500.0,0.00041917,31]
[312577792,1706021292669,-1101.76,0.00041917,31]
[312577793,1706021292694,-500.0,0.00041917,31]
[312577794,1706021292719,-973.74,0.00041917,31]
[312577795,1706021292744,-518.86282913,0.00041917,31]
[312577796,1706021292769,-504.04533746,0.00041917,31]
[312577797,1706021292795,-500.0,0.00041917,31]
[312577798,1706021292821,-500.0,0.00041917,31]
[312577799,1706021292846,-500.0,0.00041917,31]
[312577800,1706021292872,-500.0,0.00041917,31]
[312577801,1706021292897,-516.41,0.00041917,31]
[312577802,1706021292923,-1055.33,0.00041917,31]
[312577803,1706021292948,-500.0,0.00041917,31]
[312577804,1706021292973,-500.0,0.00041917,31]
[312577805,1706021293000,-742.32,0.00041917,31]
[312577806,1706021293026,-500.0,0.00041917,31]
[312577807,1706021293052,-606.2,0.00041917,31]
[312577808,1706021293079,-505.49227665,0.00041917,31]
[312577809,1706021293104,-500.0,0.00041917,31]
[312577810,1706021293130,-500.0,0.00041917,31]
[312577811,1706021293156,-1128.21,0.00041917,31]
[312577812,1706021293181,-963.14,0.00041917,31]
[312577813,1706021293206,-500.0,0.00041917,31]
[312577814,1706021293232,-500.0,0.00041917,31]
[312577815,1706021293258,-676.58,0.00041917,31]
[312577816,1706021293355,-150.0,0.00042,30]
[312577817,1706021293394,-1000.0,0.00042,14]
[312577818,1706021293420,-50000.0,0.00042,25]
[312577819,1706021293446,-50000.0,0.00042,20]
[312577820,1706021293472,-50000.0,0.00042,10]
[312577821,1706021293499,-50000.0,0.00042,20]
[312577822,1706021293526,-100000.0,0.00042,20]
[312577823,1706021293551,-100000.0,0.00042,25]
[312577824,1706021293577,-50000.0,0.00042,15]
[312577825,1706021293603,-504.63,0.00042,7]
[312577826,1706021293628,-5000.0,0.00042,120]
[312577827,1706021293652,-5000.0,0.00042,120]
[312577828,1706021293677,-6252.0,0.00042,120]
[312577829,1706021293702,-12009.49989803,0.00042,120]
[312577830,1706021293727,-200.0,0.00042,18]
[312577831,1706021293753,-158.3224257,0.00042026,30]
[312577832,1706021293779,-158.94551716,0.00042088,30]
[312577833,1706021293806,-210.87154389,0.00042095,14]
[312577834,1706021293833,-526.07776661,0.00042095,14]
[312577835,1706021293864,-1118.06264097,0.00042095,14]
[312577836,1706021293898,-571.41862232,0.00042095,15]
[312577837,1706021293929,-2613.9939868,0.00042095,15]
[312577838,1706021293955,-150.43942455,0.0004211,30]
[312577839,1706021293984,-161.55154099,0.00042147,14]
[312577840,1706021294014,-160.0,0.00042154,7]
[312577841,1706021294041,-158.32242578,0.00042177,30]
[312577842,1706021294069,-150.4394246,0.0004219,30]
[312577843,1706021294098,-500.0,0.00042191,7]
[312577844,1706021294132,-500.0,0.00042191,31]
[312577845,1706021294161,-550.0,0.00042191,31]
[312577846,1706021294190,-500.0,0.00042191,31]
[312577847,1706021294219,-596.43,0.00042191,31]